[Event "Titled Tuesday Blitz June 6 Early 2023"]
[White "Torres Dominguez, David"]
[Black "Svicevic, Rastko"]
[WhiteFideId "2220857"]
[BlackFideId "916315"]
[WhiteElo "1999"]
[BlackElo "2123"]
[Result "1-0"]
[Round "4"]
[TimeControl "180+2"]
[Date "2023.06.06"]
[WhiteClock "0:00:14"]
[BlackClock "0:00:01"]
[Board "200"]

1. e4 {[%clk 0:02:45]}  c6 {[%clk 0:02:59]} 2. Nf3 {[%clk 0:02:44]}  d5 {[%clk 0:02:59]} 3. d3 {[%clk 0:02:45]}  Bg4 {[%clk 0:02:58]} 4. Be2 {[%clk 0:02:45]}  e6 {[%clk 0:02:57]} 5. Nfd2 {[%clk 0:02:44]}  Bxe2 {[%clk 0:02:56]} 6. Qxe2 {[%clk 0:02:44]}  Nd7 {[%clk 0:02:55]} 7. O-O {[%clk 0:02:45]}  g6 {[%clk 0:02:54]} 8. Nf3 {[%clk 0:02:44]}  Bg7 {[%clk 0:02:54]} 9. Nbd2 {[%clk 0:02:44]}  Ne7 {[%clk 0:01:49]} 10. d4 {[%clk 0:02:40]}  dxe4 {[%clk 0:01:45]} 11. Nxe4 {[%clk 0:02:40]}  Nf5 {[%clk 0:01:45]} 12. c3 {[%clk 0:02:38]}  O-O {[%clk 0:01:44]} 13. Bg5 {[%clk 0:02:34]}  Qb6 {[%clk 0:01:43]} 14. Rab1 {[%clk 0:02:19]}  h6 {[%clk 0:01:38]} 15. Bf4 {[%clk 0:02:19]}  g5 {[%clk 0:01:19]} 16. Bxg5 {[%clk 0:01:54]}  hxg5 {[%clk 0:01:17]} 17. Nfxg5 {[%clk 0:01:54]}  Nf6 {[%clk 0:01:17]} 18. Rbe1 {[%clk 0:01:19]}  Nxe4 {[%clk 0:01:13]} 19. Qxe4 {[%clk 0:01:18]}  Bf6 {[%clk 0:01:08]} 20. Qg4 {[%clk 0:01:14]}  Ng7 {[%clk 0:00:53]} 21. Re3 {[%clk 0:01:02]}  Bxg5 {[%clk 0:00:50]} 22. Qxg5 {[%clk 0:01:02]}  f6 {[%clk 0:00:50]} 23. Qg6 {[%clk 0:00:57]}  Rf7 {[%clk 0:00:47]} 24. Rxe6 {[%clk 0:00:56]}  Qb5 {[%clk 0:00:39]} 25. f4 {[%clk 0:00:24]}  Qf5 {[%clk 0:00:38]} 26. Qxf5 {[%clk 0:00:20]}  Nxf5 {[%clk 0:00:39]} 27. Rfe1 {[%clk 0:00:21]}  Kf8 {[%clk 0:00:30]} 28. g4 {[%clk 0:00:21]}  Ne7 {[%clk 0:00:30]} 29. Kf2 {[%clk 0:00:21]}  Nd5 {[%clk 0:00:22]} 30. Kf3 {[%clk 0:00:21]}  Kg7 {[%clk 0:00:22]} 31. h4 {[%clk 0:00:20]}  Rh8 {[%clk 0:00:22]} 32. h5 {[%clk 0:00:20]}  f5 {[%clk 0:00:22]} 33. h6+ {[%clk 0:00:18]}  Rxh6 {[%clk 0:00:21]} 34. Rxh6 {[%clk 0:00:18]}  Kxh6 {[%clk 0:00:22]} 35. g5+ {[%clk 0:00:19]}  Kg7 {[%clk 0:00:20]} 36. Re5 {[%clk 0:00:18]}  Rf8 {[%clk 0:00:16]} 37. c4 {[%clk 0:00:16]}  Nb4 {[%clk 0:00:13]} 38. a3 {[%clk 0:00:16]}  Nd3 {[%clk 0:00:12]} 39. Re7+ {[%clk 0:00:16]}  Rf7 {[%clk 0:00:12]} 40. Rxf7+ {[%clk 0:00:17]}  Kxf7 {[%clk 0:00:12]} 41. b4 {[%clk 0:00:17]}  Ne1+ {[%clk 0:00:12]} 42. Ke3 {[%clk 0:00:16]}  Nc2+ {[%clk 0:00:13]} 43. Kd3 {[%clk 0:00:17]}  Nxa3 {[%clk 0:00:13]} 44. Kc3 {[%clk 0:00:15]}  b5 {[%clk 0:00:13]} 45. d5 {[%clk 0:00:13]}  Nxc4 {[%clk 0:00:10]} 46. dxc6 {[%clk 0:00:12]}  Nd6 {[%clk 0:00:09]} 47. c7 {[%clk 0:00:12]}  Ke7 {[%clk 0:00:05]} 48. Kd4 {[%clk 0:00:13]}  Kd7 {[%clk 0:00:05]} 49. g6 {[%clk 0:00:13]}  Ne8 {[%clk 0:00:05]} 50. Ke5 {[%clk 0:00:12]}  Kxc7 {[%clk 0:00:05]} 51. Kxf5 {[%clk 0:00:12]}  a5 {[%clk 0:00:05]} 52. bxa5 {[%clk 0:00:12]}  b4 {[%clk 0:00:05]} 53. a6 {[%clk 0:00:13]}  b3 {[%clk 0:00:04]} 54. a7 {[%clk 0:00:13]}  Kb7 {[%clk 0:00:04]} 55. Ke6 {[%clk 0:00:14]}  Kxa7 {[%clk 0:00:04]} 56. Ke7 {[%clk 0:00:14]}  b2 {[%clk 0:00:04]} 57. Kxe8 {[%clk 0:00:15]}  b1=Q {[%clk 0:00:04]} 58. g7 {[%clk 0:00:16]}  Qe4+ {[%clk 0:00:05]} 59. Kf7 {[%clk 0:00:16]}  Qxf4+ {[%clk 0:00:05]} 60. Kg6 {[%clk 0:00:16]}  Qg4+ {[%clk 0:00:05]} 61. Kh7 {[%clk 0:00:16]}  Qh5+ {[%clk 0:00:05]} 62. Kg8 {[%clk 0:00:16]}  Kb7 {[%clk 0:00:05]} 63. Kf8 {[%clk 0:00:16]}  Qf5+ {[%clk 0:00:06]} 64. Ke7 {[%clk 0:00:16]}  Qg6 {[%clk 0:00:06]} 65. Kf8 {[%clk 0:00:16]}  Qf6+ {[%clk 0:00:07]} 66. Kg8 {[%clk 0:00:16]}  Kc7 {[%clk 0:00:08]} 67. Kh7 {[%clk 0:00:17]}  Qh4+ {[%clk 0:00:08]} 68. Kg6 {[%clk 0:00:17]}  Qg4+ {[%clk 0:00:08]} 69. Kf7 {[%clk 0:00:16]}  Qf5+ {[%clk 0:00:08]} 70. Ke7 {[%clk 0:00:16]}  Qg6 {[%clk 0:00:08]} 71. Kf8 {[%clk 0:00:16]}  Qf6+ {[%clk 0:00:05]} 72. Kg8 {[%clk 0:00:16]}  Kd7 {[%clk 0:00:06]} 73. Kh7 {[%clk 0:00:16]}  Qf7 {[%clk 0:00:05]} 74. Kh8 {[%clk 0:00:15]}  Qh5+ {[%clk 0:00:04]} 75. Kg8 {[%clk 0:00:16]}  Ke6 {[%clk 0:00:04]} 76. Kf8 {[%clk 0:00:15]}  Qf5+ {[%clk 0:00:03]} 77. Kg8 {[%clk 0:00:15]}  Qg6 {[%clk 0:00:03]} 78. Kh8 {[%clk 0:00:15]}  Qh6+ {[%clk 0:00:01]} 79. Kg8 {[%clk 0:00:14]} 1-0


[Site "https://www.chess.com"]

[Event "Titled Tuesday Blitz June 6 Early 2023"]
[White "Chess_maylovsky"]
[Black "Sailer, Mike"]
[BlackFideId "2012901"]
[WhiteElo "1982"]
[BlackElo "2109"]
[Result "0-1"]
[Round "4"]
[TimeControl "180+2"]
[Date "2023.06.06"]
[WhiteClock "0:00:22"]
[BlackClock "0:00:13"]
[Board "202"]

1. c4 {[%clk 0:02:49]}  c6 {[%clk 0:02:56]} 2. d4 {[%clk 0:02:32]}  d5 {[%clk 0:02:54]} 3. Nc3 {[%clk 0:02:09]}  Nf6 {[%clk 0:02:53]} 4. Nf3 {[%clk 0:01:59]}  a6 {[%clk 0:02:52]} 5. c5 {[%clk 0:01:51]}  g6 {[%clk 0:02:50]} 6. Bf4 {[%clk 0:01:51]}  Bg7 {[%clk 0:02:50]} 7. b4 {[%clk 0:01:51]}  O-O {[%clk 0:02:50]} 8. a3 {[%clk 0:01:51]}  Bf5 {[%clk 0:02:44]} 9. h3 {[%clk 0:01:51]}  Re8 {[%clk 0:02:37]} 10. e3 {[%clk 0:01:51]}  Nbd7 {[%clk 0:02:34]} 11. Bd3 {[%clk 0:01:51]}  Bxd3 {[%clk 0:02:34]} 12. Qxd3 {[%clk 0:01:51]}  Nh5 {[%clk 0:02:33]} 13. Bh2 {[%clk 0:01:51]}  e5 {[%clk 0:02:33]} 14. dxe5 {[%clk 0:01:49]}  Nxe5 {[%clk 0:02:33]} 15. Nxe5 {[%clk 0:01:49]}  Bxe5 {[%clk 0:02:33]} 16. Bxe5 {[%clk 0:01:49]}  Rxe5 {[%clk 0:02:34]} 17. O-O {[%clk 0:01:49]}  f5 {[%clk 0:02:12]} 18. Ne2 {[%clk 0:01:47]}  Qe7 {[%clk 0:02:02]} 19. Nf4 {[%clk 0:01:41]}  Nxf4 {[%clk 0:02:02]} 20. exf4 {[%clk 0:01:41]}  Re4 {[%clk 0:01:56]} 21. Qd2 {[%clk 0:01:38]}  Re8 {[%clk 0:01:55]} 22. Ra2 {[%clk 0:01:35]}  Qh4 {[%clk 0:01:45]} 23. f3 {[%clk 0:01:31]}  Re3 {[%clk 0:01:39]} 24. Qf2 {[%clk 0:01:29]}  Qxf4 {[%clk 0:01:35]} 25. Rd1 {[%clk 0:01:28]}  Qe5 {[%clk 0:01:29]} 26. Rad2 {[%clk 0:01:26]}  Re1+ {[%clk 0:01:17]} 27. Rxe1 {[%clk 0:01:24]}  Qxe1+ {[%clk 0:01:17]} 28. Qxe1 {[%clk 0:01:20]}  Rxe1+ {[%clk 0:01:17]} 29. Kf2 {[%clk 0:01:21]}  Ra1 {[%clk 0:01:15]} 30. Rd3 {[%clk 0:01:20]}  Kf7 {[%clk 0:01:15]} 31. Kg3 {[%clk 0:01:20]}  Ra2 {[%clk 0:01:14]} 32. Kf4 {[%clk 0:01:19]}  Rxg2 {[%clk 0:01:09]} 33. Re3 {[%clk 0:01:18]}  Kf6 {[%clk 0:00:59]} 34. h4 {[%clk 0:01:16]}  h6 {[%clk 0:01:00]} 35. Re8 {[%clk 0:01:14]}  g5+ {[%clk 0:00:58]} 36. hxg5+ {[%clk 0:01:14]}  hxg5+ {[%clk 0:00:58]} 37. Ke3 {[%clk 0:01:14]}  f4+ {[%clk 0:00:49]} 38. Kd3 {[%clk 0:01:13]}  Ra2 {[%clk 0:00:45]} 39. Rf8+ {[%clk 0:01:11]}  Kg7 {[%clk 0:00:39]} 40. Rb8 {[%clk 0:01:10]}  Rxa3+ {[%clk 0:00:40]} 41. Ke2 {[%clk 0:01:10]}  Re3+ {[%clk 0:00:39]} 42. Kf2 {[%clk 0:01:09]}  Re7 {[%clk 0:00:39]} 43. Rd8 {[%clk 0:01:08]}  Kf6 {[%clk 0:00:37]} 44. Rf8+ {[%clk 0:01:08]}  Rf7 {[%clk 0:00:34]} 45. Rg8 {[%clk 0:01:06]}  Kf5 {[%clk 0:00:33]} 46. Re8 {[%clk 0:01:04]}  g4 {[%clk 0:00:29]} 47. fxg4+ {[%clk 0:01:02]}  Kxg4 {[%clk 0:00:29]} 48. Rg8+ {[%clk 0:01:02]}  Kf5 {[%clk 0:00:30]} 49. Kf3 {[%clk 0:01:02]}  Ke5 {[%clk 0:00:29]} 50. Re8+ {[%clk 0:01:02]}  Kd4 {[%clk 0:00:30]} 51. Re1 {[%clk 0:00:59]}  Kc4 {[%clk 0:00:30]} 52. Rb1 {[%clk 0:00:59]}  d4 {[%clk 0:00:30]} 53. Ke4 {[%clk 0:00:58]}  f3 {[%clk 0:00:30]} 54. Rc1+ {[%clk 0:00:58]}  Kxb4 {[%clk 0:00:31]} 55. Kxd4 {[%clk 0:00:58]}  f2 {[%clk 0:00:29]} 56. Rb1+ {[%clk 0:00:58]}  Ka4 {[%clk 0:00:22]} 57. Rf1 {[%clk 0:00:57]}  a5 {[%clk 0:00:17]} 58. Kc4 {[%clk 0:00:56]}  Ka3 {[%clk 0:00:17]} 59. Kc3 {[%clk 0:00:56]}  Ka2 {[%clk 0:00:16]} 60. Kc2 {[%clk 0:00:54]}  a4 {[%clk 0:00:17]} 61. Kd3 {[%clk 0:00:51]}  a3 {[%clk 0:00:17]} 62. Kc2 {[%clk 0:00:51]}  Rf5 {[%clk 0:00:17]} 63. Kd3 {[%clk 0:00:50]}  Kb3 {[%clk 0:00:17]} 64. Rb1+ {[%clk 0:00:46]}  Ka4 {[%clk 0:00:18]} 65. Rf1 {[%clk 0:00:46]}  a2 {[%clk 0:00:18]} 66. Kd4 {[%clk 0:00:41]}  Kb3 {[%clk 0:00:17]} 67. Kd3 {[%clk 0:00:37]}  Kb2 {[%clk 0:00:17]} 68. Ke4 {[%clk 0:00:34]}  Rf8 {[%clk 0:00:16]} 69. Kd3 {[%clk 0:00:30]}  a1=Q {[%clk 0:00:16]} 70. Rxf2+ {[%clk 0:00:22]}  Rxf2 {[%clk 0:00:14]} 71. Ke4 {[%clk 0:00:23]}  Qe1+ {[%clk 0:00:13]} 72. Kd3 {[%clk 0:00:22]}  Rd2+ {[%clk 0:00:14]} 73. Kc4 {[%clk 0:00:22]}  Qe4# {[%clk 0:00:13]} 0-1


[Site "https://www.chess.com"]

[Event "Titled Tuesday Blitz June 6 Early 2023"]
[White "Porat, Tori"]
[Black "le-castor-faineant"]
[WhiteFideId "30982626"]
[WhiteElo "1752"]
[BlackElo "2227"]
[Result "0-1"]
[Round "4"]
[TimeControl "180+2"]
[Date "2023.06.06"]
[WhiteClock "0:00:18"]
[BlackClock "0:00:12"]
[Board "203"]

1. d4 {[%clk 0:03:00]}  Nf6 {[%clk 0:02:59]} 2. c4 {[%clk 0:03:00]}  g6 {[%clk 0:03:00]} 3. Nf3 {[%clk 0:03:00]}  Bg7 {[%clk 0:03:00]} 4. Nc3 {[%clk 0:02:58]}  O-O {[%clk 0:03:01]} 5. Bg5 {[%clk 0:02:55]}  d6 {[%clk 0:03:02]} 6. e3 {[%clk 0:02:55]}  Nbd7 {[%clk 0:03:01]} 7. Be2 {[%clk 0:02:53]}  e5 {[%clk 0:03:01]} 8. d5 {[%clk 0:02:48]}  h6 {[%clk 0:03:00]} 9. Bh4 {[%clk 0:02:47]}  a5 {[%clk 0:02:56]} 10. e4 {[%clk 0:02:44]}  Nc5 {[%clk 0:02:49]} 11. Qc2 {[%clk 0:02:42]}  Bd7 {[%clk 0:02:36]} 12. O-O {[%clk 0:02:41]}  Qc8 {[%clk 0:02:26]} 13. a3 {[%clk 0:02:35]}  a4 {[%clk 0:02:17]} 14. Nd2 {[%clk 0:02:33]}  Nfxe4 {[%clk 0:01:46]} 15. Ncxe4 {[%clk 0:02:02]}  Nxe4 {[%clk 0:01:46]} 16. Qxe4 {[%clk 0:01:55]}  f5 {[%clk 0:01:40]} 17. Qc2 {[%clk 0:01:54]}  g5 {[%clk 0:01:40]} 18. Bg3 {[%clk 0:01:46]}  f4 {[%clk 0:01:40]} 19. Qg6 {[%clk 0:01:35]}  Bf5 {[%clk 0:01:28]} 20. Qh5 {[%clk 0:01:33]}  fxg3 {[%clk 0:01:25]} 21. hxg3 {[%clk 0:01:27]}  Qe8 {[%clk 0:01:25]} 22. Qh2 {[%clk 0:01:24]}  Qg6 {[%clk 0:01:04]} 23. Bh5 {[%clk 0:01:21]}  Qh7 {[%clk 0:01:00]} 24. Rac1 {[%clk 0:01:15]}  Bd3 {[%clk 0:00:57]} 25. Rfe1 {[%clk 0:01:13]}  e4 {[%clk 0:00:56]} 26. b4 {[%clk 0:01:04]}  axb3 {[%clk 0:00:53]} 27. Nxb3 {[%clk 0:01:04]}  Rxa3 {[%clk 0:00:54]} 28. Nd2 {[%clk 0:01:02]}  Bd4 {[%clk 0:00:53]} 29. Kh1 {[%clk 0:00:52]}  Bxf2 {[%clk 0:00:50]} 30. Red1 {[%clk 0:00:52]}  e3 {[%clk 0:00:42]} 31. Nf3 {[%clk 0:00:45]}  e2 {[%clk 0:00:42]} 32. Rd2 {[%clk 0:00:29]}  Be3 {[%clk 0:00:20]} 33. Qh3 {[%clk 0:00:17]}  Bxd2 {[%clk 0:00:20]} 34. Nxd2 {[%clk 0:00:17]}  Bf5 {[%clk 0:00:15]} 35. g4 {[%clk 0:00:16]}  Rxh3+ {[%clk 0:00:14]} 36. gxh3 {[%clk 0:00:17]}  Be4+ {[%clk 0:00:14]} 37. Kh2 {[%clk 0:00:17]}  Rf2+ {[%clk 0:00:13]} 38. Kg3 {[%clk 0:00:18]}  Rg2# {[%clk 0:00:12]} 0-1


[Site "https://www.chess.com"]

[Event "Titled Tuesday Blitz June 6 Early 2023"]
[White "Martinez Alcantara, Jose Eduardo"]
[Black "Aravindh, Chithambaram VR."]
[WhiteFideId "3805662"]
[BlackFideId "5072786"]
[WhiteElo "2711"]
[BlackElo "2596"]
[Result "1-0"]
[Round "5"]
[TimeControl "180+2"]
[Date "2023.06.06"]
[WhiteClock "0:01:09"]
[BlackClock "0:00:01"]
[Board "3"]

1. e4 {[%clk 0:03:00]}  g6 {[%clk 0:02:22]} 2. d4 {[%clk 0:02:59]}  Bg7 {[%clk 0:02:21]} 3. c3 {[%clk 0:03:00]}  d6 {[%clk 0:02:21]} 4. Bd3 {[%clk 0:03:00]}  Nf6 {[%clk 0:02:21]} 5. Nf3 {[%clk 0:03:01]}  O-O {[%clk 0:02:22]} 6. h3 {[%clk 0:03:02]}  c6 {[%clk 0:02:20]} 7. O-O {[%clk 0:03:03]}  Qc7 {[%clk 0:02:21]} 8. Bf4 {[%clk 0:03:03]}  Nbd7 {[%clk 0:02:19]} 9. Nbd2 {[%clk 0:03:03]}  e5 {[%clk 0:02:19]} 10. Bh2 {[%clk 0:03:03]}  Re8 {[%clk 0:02:19]} 11. a4 {[%clk 0:03:04]}  b6 {[%clk 0:02:17]} 12. Re1 {[%clk 0:03:03]}  a6 {[%clk 0:02:17]} 13. Qc2 {[%clk 0:03:00]}  Rb8 {[%clk 0:02:17]} 14. b4 {[%clk 0:02:55]}  b5 {[%clk 0:02:10]} 15. c4 {[%clk 0:02:50]}  bxa4 {[%clk 0:01:51]} 16. Rxa4 {[%clk 0:02:45]}  Nh5 {[%clk 0:01:42]} 17. dxe5 {[%clk 0:02:42]}  Nxe5 {[%clk 0:01:41]} 18. Bxe5 {[%clk 0:02:36]}  dxe5 {[%clk 0:01:31]} 19. c5 {[%clk 0:02:37]}  Nf4 {[%clk 0:01:32]} 20. Bf1 {[%clk 0:02:38]}  Be6 {[%clk 0:01:21]} 21. Nc4 {[%clk 0:02:33]}  Bxc4 {[%clk 0:01:11]} 22. Bxc4 {[%clk 0:02:31]}  h6 {[%clk 0:01:11]} 23. Rb1 {[%clk 0:02:25]}  Kh8 {[%clk 0:01:05]} 24. Rxa6 {[%clk 0:02:24]}  Red8 {[%clk 0:01:00]} 25. Qa4 {[%clk 0:02:21]}  Qe7 {[%clk 0:00:51]} 26. Rxc6 {[%clk 0:02:00]}  f5 {[%clk 0:00:50]} 27. Qc2 {[%clk 0:01:56]}  fxe4 {[%clk 0:00:38]} 28. Qxe4 {[%clk 0:01:54]}  Rd7 {[%clk 0:00:27]} 29. g3 {[%clk 0:01:45]}  Nxh3+ {[%clk 0:00:25]} 30. Kg2 {[%clk 0:01:45]}  Ng5 {[%clk 0:00:26]} 31. Nxg5 {[%clk 0:01:46]}  Qxg5 {[%clk 0:00:26]} 32. Rxg6 {[%clk 0:01:46]}  Rd4 {[%clk 0:00:23]} 33. Qxd4 {[%clk 0:01:31]}  Qxg6 {[%clk 0:00:23]} 34. Bd3 {[%clk 0:01:31]}  exd4 {[%clk 0:00:11]} 35. Bxg6 {[%clk 0:01:31]}  Bf8 {[%clk 0:00:11]} 36. c6 {[%clk 0:01:27]}  Bd6 {[%clk 0:00:08]} 37. b5 {[%clk 0:01:27]}  Bc7 {[%clk 0:00:06]} 38. Bd3 {[%clk 0:01:24]}  Kg7 {[%clk 0:00:06]} 39. Re1 {[%clk 0:01:25]}  Kf6 {[%clk 0:00:07]} 40. Rh1 {[%clk 0:01:25]}  Kg7 {[%clk 0:00:06]} 41. Rh4 {[%clk 0:01:26]}  Rd8 {[%clk 0:00:06]} 42. Rg4+ {[%clk 0:01:26]}  Kf7 {[%clk 0:00:06]} 43. Re4 {[%clk 0:01:22]}  Bb6 {[%clk 0:00:06]} 44. Re1 {[%clk 0:01:20]}  Ra8 {[%clk 0:00:05]} 45. Bc4+ {[%clk 0:01:19]}  Kf6 {[%clk 0:00:05]} 46. Re6+ {[%clk 0:01:19]}  Kf5 {[%clk 0:00:06]} 47. Re7 {[%clk 0:01:18]}  Ra3 {[%clk 0:00:03]} 48. Rb7 {[%clk 0:01:17]}  Rc3 {[%clk 0:00:02]} 49. Rxb6 {[%clk 0:01:13]}  Rxc4 {[%clk 0:00:03]} 50. Rb7 {[%clk 0:01:14]}  d3 {[%clk 0:00:03]} 51. Rd7 {[%clk 0:01:14]}  Ke4 {[%clk 0:00:02]} 52. c7 {[%clk 0:01:12]}  d2 {[%clk 0:00:01]} 53. b6 {[%clk 0:01:09]}  Rd4 {[%clk 0:00:01]} 54. Rxd4+ {[%clk 0:01:09]} 1-0


[Site "https://www.chess.com"]

[Event "Titled Tuesday Blitz June 6 Early 2023"]
[White "Samadov, Read"]
[Black "Duda, Jan-Krzysztof"]
[WhiteFideId "13417444"]
[BlackFideId "1170546"]
[WhiteElo "2355"]
[BlackElo "2783"]
[Result "0-1"]
[Round "5"]
[TimeControl "180+2"]
[Date "2023.06.06"]
[WhiteClock "0:00:21"]
[BlackClock "0:01:06"]
[Board "4"]

1. c4 {[%clk 0:03:00]}  e5 {[%clk 0:02:58]} 2. Nc3 {[%clk 0:03:01]}  Bb4 {[%clk 0:02:57]} 3. Nd5 {[%clk 0:02:59]}  Be7 {[%clk 0:02:57]} 4. d4 {[%clk 0:02:59]}  d6 {[%clk 0:02:57]} 5. Nf3 {[%clk 0:02:55]}  Nd7 {[%clk 0:02:54]} 6. e4 {[%clk 0:02:51]}  Ngf6 {[%clk 0:02:53]} 7. Bd3 {[%clk 0:02:23]}  O-O {[%clk 0:02:28]} 8. O-O {[%clk 0:02:21]}  exd4 {[%clk 0:02:23]} 9. Nxd4 {[%clk 0:02:22]}  Ne5 {[%clk 0:02:24]} 10. Nxe7+ {[%clk 0:02:18]}  Qxe7 {[%clk 0:02:25]} 11. Re1 {[%clk 0:02:14]}  h6 {[%clk 0:02:18]} 12. b3 {[%clk 0:02:08]}  c5 {[%clk 0:02:07]} 13. Nb5 {[%clk 0:01:53]}  Bg4 {[%clk 0:02:02]} 14. f3 {[%clk 0:01:41]}  Bd7 {[%clk 0:02:03]} 15. Nc3 {[%clk 0:01:39]}  a6 {[%clk 0:02:02]} 16. Bb2 {[%clk 0:01:35]}  Rfe8 {[%clk 0:02:01]} 17. Qd2 {[%clk 0:01:32]}  Rab8 {[%clk 0:01:40]} 18. Rad1 {[%clk 0:01:32]}  b5 {[%clk 0:01:39]} 19. cxb5 {[%clk 0:01:32]}  axb5 {[%clk 0:01:40]} 20. Bf1 {[%clk 0:01:23]}  b4 {[%clk 0:01:40]} 21. Nd5 {[%clk 0:01:22]}  Nxd5 {[%clk 0:01:39]} 22. Qxd5 {[%clk 0:01:23]}  Rb6 {[%clk 0:01:40]} 23. Qd2 {[%clk 0:00:52]}  f6 {[%clk 0:01:30]} 24. f4 {[%clk 0:00:52]}  Nf7 {[%clk 0:01:30]} 25. Bc4 {[%clk 0:00:50]}  Be6 {[%clk 0:01:30]} 26. Bd5 {[%clk 0:00:49]}  Qd7 {[%clk 0:01:20]} 27. h3 {[%clk 0:00:41]}  Ra6 {[%clk 0:01:19]} 28. Ba1 {[%clk 0:00:35]}  Bxd5 {[%clk 0:01:16]} 29. exd5 {[%clk 0:00:33]}  Rea8 {[%clk 0:01:13]} 30. Qd3 {[%clk 0:00:28]}  Rxa2 {[%clk 0:01:09]} 31. Re6 {[%clk 0:00:21]}  Rxa1 {[%clk 0:01:06]} 0-1


[Site "https://www.chess.com"]

[Event "Titled Tuesday Blitz June 6 Early 2023"]
[White "Sanal, Vahap"]
[Black "Paravyan, David"]
[WhiteFideId "6300545"]
[BlackFideId "4194985"]
[WhiteElo "2606"]
[BlackElo "2563"]
[Result "1-0"]
[Round "5"]
[TimeControl "180+2"]
[Date "2023.06.06"]
[WhiteClock "0:00:16"]
[BlackClock "0:00:01"]
[Board "5"]

1. e4 {[%clk 0:03:00]}  e5 {[%clk 0:02:58]} 2. Nc3 {[%clk 0:02:59]}  Nf6 {[%clk 0:02:58]} 3. Bc4 {[%clk 0:02:58]}  Bc5 {[%clk 0:02:58]} 4. d3 {[%clk 0:02:58]}  c6 {[%clk 0:02:57]} 5. Nf3 {[%clk 0:02:53]}  d6 {[%clk 0:02:57]} 6. O-O {[%clk 0:02:48]}  O-O {[%clk 0:02:55]} 7. a4 {[%clk 0:02:42]}  a5 {[%clk 0:02:55]} 8. h3 {[%clk 0:02:41]}  h6 {[%clk 0:02:54]} 9. Re1 {[%clk 0:02:38]}  Re8 {[%clk 0:02:52]} 10. Ba2 {[%clk 0:02:32]}  Be6 {[%clk 0:02:48]} 11. Bxe6 {[%clk 0:02:31]}  Rxe6 {[%clk 0:02:49]} 12. d4 {[%clk 0:02:24]}  exd4 {[%clk 0:02:49]} 13. Nxd4 {[%clk 0:02:24]}  Re8 {[%clk 0:02:50]} 14. Nf5 {[%clk 0:02:20]}  Na6 {[%clk 0:02:10]} 15. Qf3 {[%clk 0:02:08]}  Kh7 {[%clk 0:01:38]} 16. Qg3 {[%clk 0:01:55]}  Rg8 {[%clk 0:01:19]} 17. Be3 {[%clk 0:01:55]}  Bb4 {[%clk 0:00:59]} 18. Bd4 {[%clk 0:01:52]}  Nc7 {[%clk 0:00:49]} 19. Rad1 {[%clk 0:01:50]}  Ne6 {[%clk 0:00:48]} 20. e5 {[%clk 0:01:38]}  Nh5 {[%clk 0:00:22]} 21. Qf3 {[%clk 0:01:31]}  Qg5 {[%clk 0:00:21]} 22. Be3 {[%clk 0:01:28]}  Nhf4 {[%clk 0:00:17]} 23. Nxd6 {[%clk 0:01:23]}  Bxc3 {[%clk 0:00:14]} 24. bxc3 {[%clk 0:01:23]}  Qxe5 {[%clk 0:00:14]} 25. Nxf7 {[%clk 0:00:56]}  Qf6 {[%clk 0:00:14]} 26. Rd7 {[%clk 0:00:56]}  Raf8 {[%clk 0:00:11]} 27. Qe4+ {[%clk 0:00:56]}  Ng6 {[%clk 0:00:03]} 28. Nxh6 {[%clk 0:00:51]}  Rh8 {[%clk 0:00:01]} 29. Ng4 {[%clk 0:00:49]}  Qf5 {[%clk 0:00:01]} 30. Qxf5 {[%clk 0:00:45]}  Rxf5 {[%clk 0:00:02]} 31. Rxb7 {[%clk 0:00:44]}  Rd8 {[%clk 0:00:03]} 32. Bh6 {[%clk 0:00:41]}  Ngf8 {[%clk 0:00:02]} 33. Be3 {[%clk 0:00:35]}  Kg8 {[%clk 0:00:02]} 34. Ra7 {[%clk 0:00:36]}  Rfd5 {[%clk 0:00:02]} 35. Kh2 {[%clk 0:00:35]}  Rd1 {[%clk 0:00:02]} 36. Rxd1 {[%clk 0:00:35]}  Rxd1 {[%clk 0:00:03]} 37. Rxa5 {[%clk 0:00:36]}  Ra1 {[%clk 0:00:03]} 38. Ra8 {[%clk 0:00:36]}  Ra2 {[%clk 0:00:03]} 39. a5 {[%clk 0:00:36]}  Kh7 {[%clk 0:00:03]} 40. a6 {[%clk 0:00:36]}  c5 {[%clk 0:00:04]} 41. a7 {[%clk 0:00:35]}  Ng6 {[%clk 0:00:01]} 42. Re8 {[%clk 0:00:34]}  Nc7 {[%clk 0:00:02]} 43. Rc8 {[%clk 0:00:31]}  Rxa7 {[%clk 0:00:03]} 44. Bxc5 {[%clk 0:00:31]}  Rb7 {[%clk 0:00:03]} 45. Ne3 {[%clk 0:00:28]}  Ne6 {[%clk 0:00:04]} 46. Bd4 {[%clk 0:00:28]}  Rf7 {[%clk 0:00:04]} 47. f3 {[%clk 0:00:25]}  Ngf4 {[%clk 0:00:05]} 48. Ng4 {[%clk 0:00:25]}  Rb7 {[%clk 0:00:04]} 49. Be3 {[%clk 0:00:21]}  Nd5 {[%clk 0:00:04]} 50. Bd2 {[%clk 0:00:20]}  Rb2 {[%clk 0:00:04]} 51. c4 {[%clk 0:00:19]}  Ndf4 {[%clk 0:00:03]} 52. Bxf4 {[%clk 0:00:19]}  Nxf4 {[%clk 0:00:04]} 53. Ne3 {[%clk 0:00:20]}  Rb1 {[%clk 0:00:04]} 54. Kg3 {[%clk 0:00:20]}  g5 {[%clk 0:00:03]} 55. h4 {[%clk 0:00:20]}  Re1 {[%clk 0:00:02]} 56. hxg5 {[%clk 0:00:15]}  Ne6 {[%clk 0:00:03]} 57. Ng4 {[%clk 0:00:13]}  Nxg5 {[%clk 0:00:03]} 58. Rc7+ {[%clk 0:00:13]}  Kg6 {[%clk 0:00:03]} 59. Rc6+ {[%clk 0:00:14]}  Kg7 {[%clk 0:00:03]} 60. Kf2 {[%clk 0:00:14]}  Rc1 {[%clk 0:00:03]} 61. Ne3 {[%clk 0:00:14]}  Nf7 {[%clk 0:00:02]} 62. c5 {[%clk 0:00:15]}  Ra1 {[%clk 0:00:02]} 63. Rc7 {[%clk 0:00:15]}  Kg6 {[%clk 0:00:01]} 64. c6 {[%clk 0:00:15]}  Ne5 {[%clk 0:00:01]} 65. f4 {[%clk 0:00:15]}  Nf7 {[%clk 0:00:01]} 66. Rd7 {[%clk 0:00:14]}  Ra6 {[%clk 0:00:01]} 67. c7 {[%clk 0:00:15]}  Rc6 {[%clk 0:00:01]} 68. Nd5 {[%clk 0:00:15]}  Rxc2+ {[%clk 0:00:01]} 69. Kf3 {[%clk 0:00:16]}  Nh6 {[%clk 0:00:01]} 70. c8=Q {[%clk 0:00:15]}  Rxc8 {[%clk 0:00:01]} 71. Ne7+ {[%clk 0:00:16]} 1-0


[Site "https://www.chess.com"]